[Event "Titled Tuesday Blitz March 29 Early 2022"]
[White "Pranav, V"]
[Black "Tabatabaei, M. Amin"]
[WhiteFideId "25060783"]
[BlackFideId "12521213"]
[WhiteElo "2349"]
[BlackElo "2544"]
[Result "1-0"]
[Round "07"]
[TimeControl "180+1"]
[Date "2022.03.29"]
[WhiteClock "0:00:24"]
[BlackClock "0:00:11"]

1. e4 {[%clk 0:03:00]}  c6 {[%clk 0:02:58]} 2. d4 {[%clk 0:03:00]}  d5 {[%clk 0:02:59]} 3. e5 {[%clk 0:03:00]}  Bf5 {[%clk 0:02:57]} 4. Nf3 {[%clk 0:03:00]}  e6 {[%clk 0:02:57]} 5. Be2 {[%clk 0:03:01]}  Nd7 {[%clk 0:02:53]} 6. c3 {[%clk 0:03:01]}  Ne7 {[%clk 0:02:49]} 7. O-O {[%clk 0:03:00]}  h6 {[%clk 0:02:46]} 8. Na3 {[%clk 0:02:58]}  Bh7 {[%clk 0:02:42]} 9. Nc2 {[%clk 0:02:57]}  Nf5 {[%clk 0:02:41]} 10. Bd3 {[%clk 0:02:56]}  c5 {[%clk 0:02:36]} 11. Ne3 {[%clk 0:02:28]}  Nxe3 {[%clk 0:02:34]} 12. fxe3 {[%clk 0:02:28]}  Bxd3 {[%clk 0:02:33]} 13. Qxd3 {[%clk 0:02:29]}  Be7 {[%clk 0:02:32]} 14. Bd2 {[%clk 0:02:28]}  Qb6 {[%clk 0:02:29]} 15. b3 {[%clk 0:02:27]}  Rc8 {[%clk 0:02:27]} 16. Kh1 {[%clk 0:02:18]}  O-O {[%clk 0:02:26]} 17. e4 {[%clk 0:02:16]}  dxe4 {[%clk 0:02:16]} 18. Qxe4 {[%clk 0:02:11]}  cxd4 {[%clk 0:02:17]} 19. cxd4 {[%clk 0:02:11]}  Qc6 {[%clk 0:02:13]} 20. Qg4 {[%clk 0:02:11]}  Kh7 {[%clk 0:02:13]} 21. Qh5 {[%clk 0:02:02]}  Qc2 {[%clk 0:02:03]} 22. Bg5 {[%clk 0:01:58]}  f6 {[%clk 0:01:42]} 23. Bh4 {[%clk 0:01:56]}  Qg6 {[%clk 0:01:39]} 24. Qxg6+ {[%clk 0:01:54]}  Kxg6 {[%clk 0:01:40]} 25. Rfe1 {[%clk 0:01:52]}  Kf7 {[%clk 0:01:35]} 26. d5 {[%clk 0:01:46]}  g5 {[%clk 0:00:59]} 27. exf6 {[%clk 0:01:30]}  Nxf6 {[%clk 0:00:49]} 28. dxe6+ {[%clk 0:01:29]}  Kg6 {[%clk 0:00:48]} 29. Bg3 {[%clk 0:01:28]}  Rfd8 {[%clk 0:00:47]} 30. h3 {[%clk 0:01:23]}  Kf5 {[%clk 0:00:43]} 31. Re5+ {[%clk 0:00:55]}  Kg6 {[%clk 0:00:43]} 32. Re2 {[%clk 0:00:56]}  Rd5 {[%clk 0:00:38]} 33. Rf1 {[%clk 0:00:54]}  a5 {[%clk 0:00:37]} 34. Ne5+ {[%clk 0:00:51]}  Kg7 {[%clk 0:00:37]} 35. Ng4 {[%clk 0:00:47]}  Kg6 {[%clk 0:00:31]} 36. Ne5+ {[%clk 0:00:46]}  Kg7 {[%clk 0:00:31]} 37. Nc4 {[%clk 0:00:47]}  Rc6 {[%clk 0:00:28]} 38. Kh2 {[%clk 0:00:35]}  b5 {[%clk 0:00:27]} 39. Nxa5 {[%clk 0:00:27]}  Rb6 {[%clk 0:00:27]} 40. b4 {[%clk 0:00:27]}  Kg6 {[%clk 0:00:24]} 41. a3 {[%clk 0:00:26]}  Nh5 {[%clk 0:00:18]} 42. Bc7 {[%clk 0:00:24]}  Ra6 {[%clk 0:00:14]} 43. Rf7 {[%clk 0:00:25]}  Bf6 {[%clk 0:00:11]} 44. e7 {[%clk 0:00:24]} 1-0


[Site "https://www.chess.com"]

[Event "Titled Tuesday Blitz March 29 Early 2022"]
[White "Quirke, Jeffrey"]
[Black "Kopylov, Alexander A."]
[WhiteFideId "2013029"]
[BlackFideId "4164857"]
[WhiteElo "2170"]
[BlackElo "2436"]
[Result "0-1"]
[Round "07"]
[TimeControl "180+1"]
[Date "2022.03.30"]
[WhiteClock "0:00:02"]
[BlackClock "0:01:07"]

1. c4 {[%clk 0:03:00]}  e5 {[%clk 0:02:45]} 2. g3 {[%clk 0:02:57]}  Nf6 {[%clk 0:02:43]} 3. Bg2 {[%clk 0:02:55]}  Be7 {[%clk 0:02:44]} 4. Nc3 {[%clk 0:02:53]}  O-O {[%clk 0:02:44]} 5. e4 {[%clk 0:02:39]}  c5 {[%clk 0:02:43]} 6. Nge2 {[%clk 0:02:38]}  d6 {[%clk 0:02:43]} 7. O-O {[%clk 0:02:39]}  Nc6 {[%clk 0:02:43]} 8. d3 {[%clk 0:02:38]}  Be6 {[%clk 0:02:42]} 9. h3 {[%clk 0:02:36]}  Rc8 {[%clk 0:02:39]} 10. Kh2 {[%clk 0:02:34]}  Nd4 {[%clk 0:02:38]} 11. Nxd4 {[%clk 0:02:31]}  cxd4 {[%clk 0:02:38]} 12. Nd5 {[%clk 0:02:30]}  Bxd5 {[%clk 0:02:37]} 13. exd5 {[%clk 0:02:27]}  Nd7 {[%clk 0:02:37]} 14. f4 {[%clk 0:02:26]}  f5 {[%clk 0:02:36]} 15. Bd2 {[%clk 0:02:25]}  Nc5 {[%clk 0:02:34]} 16. Qe2 {[%clk 0:02:25]}  Qc7 {[%clk 0:02:30]} 17. b4 {[%clk 0:02:20]}  Nd7 {[%clk 0:02:29]} 18. Rac1 {[%clk 0:02:11]}  b6 {[%clk 0:02:29]} 19. g4 {[%clk 0:01:38]}  g6 {[%clk 0:02:15]} 20. Bf3 {[%clk 0:01:30]}  Kh8 {[%clk 0:02:13]} 21. Rg1 {[%clk 0:01:24]}  Nf6 {[%clk 0:02:11]} 22. gxf5 {[%clk 0:01:16]}  gxf5 {[%clk 0:02:12]} 23. Rg2 {[%clk 0:01:08]}  Rf7 {[%clk 0:02:10]} 24. Rcg1 {[%clk 0:01:08]}  Rcf8 {[%clk 0:02:10]} 25. Qe1 {[%clk 0:00:57]}  Bd8 {[%clk 0:01:55]} 26. a3 {[%clk 0:00:55]}  Qe7 {[%clk 0:01:41]} 27. Qg3 {[%clk 0:00:48]}  Qe8 {[%clk 0:01:34]} 28. fxe5 {[%clk 0:00:40]}  dxe5 {[%clk 0:01:34]} 29. Bg5 {[%clk 0:00:29]}  e4 {[%clk 0:01:13]} 30. Bxf6+ {[%clk 0:00:19]}  Bxf6 {[%clk 0:01:12]} 31. dxe4 {[%clk 0:00:20]}  fxe4 {[%clk 0:01:13]} 32. Bxe4 {[%clk 0:00:02]}  Be5 {[%clk 0:01:07]} 0-1


[Site "https://www.chess.com"]

[Event "Titled Tuesday Blitz March 29 Early 2022"]
[White "Rustemov, Alexander"]
[Black "Al-Tarboush, Ward"]
[WhiteFideId "4119002"]
[BlackFideId "7601450"]
[WhiteElo "2756"]
[BlackElo "2276"]
[Result "1-0"]
[Round "07"]
[TimeControl "180+1"]
[Date "2022.03.29"]
[WhiteClock "0:00:41"]
[BlackClock "0:01:32"]

1. d4 {[%clk 0:03:00]}  d5 {[%clk 0:02:59]} 2. c4 {[%clk 0:03:00]}  c6 {[%clk 0:03:00]} 3. Nc3 {[%clk 0:03:00]}  Nf6 {[%clk 0:03:00]} 4. e3 {[%clk 0:03:01]}  e6 {[%clk 0:03:00]} 5. Nf3 {[%clk 0:03:02]}  Nbd7 {[%clk 0:03:00]} 6. Qc2 {[%clk 0:03:02]}  Bd6 {[%clk 0:03:00]} 7. b3 {[%clk 0:03:03]}  O-O {[%clk 0:02:59]} 8. Be2 {[%clk 0:03:03]}  b6 {[%clk 0:02:59]} 9. O-O {[%clk 0:03:04]}  Bb7 {[%clk 0:03:00]} 10. Bb2 {[%clk 0:03:04]}  c5 {[%clk 0:03:00]} 11. cxd5 {[%clk 0:03:02]}  exd5 {[%clk 0:03:00]} 12. Rfd1 {[%clk 0:02:57]}  Qe7 {[%clk 0:02:59]} 13. Rac1 {[%clk 0:02:55]}  Rac8 {[%clk 0:02:58]} 14. Qf5 {[%clk 0:02:49]}  g6 {[%clk 0:02:58]} 15. Qg5 {[%clk 0:02:41]}  Rfe8 {[%clk 0:02:56]} 16. dxc5 {[%clk 0:02:34]}  bxc5 {[%clk 0:02:56]} 17. Bb5 {[%clk 0:02:28]}  Ne5 {[%clk 0:02:55]} 18. Nxe5 {[%clk 0:02:22]}  Bxe5 {[%clk 0:02:56]} 19. Bxe8 {[%clk 0:02:21]}  Rxe8 {[%clk 0:02:54]} 20. Na4 {[%clk 0:02:19]}  Qd6 {[%clk 0:02:43]} 21. Bxe5 {[%clk 0:02:14]}  Rxe5 {[%clk 0:02:44]} 22. Qf4 {[%clk 0:01:56]}  g5 {[%clk 0:02:44]} 23. Qf3 {[%clk 0:01:50]}  Ne4 {[%clk 0:02:41]} 24. Nc3 {[%clk 0:01:39]}  d4 {[%clk 0:02:37]} 25. exd4 {[%clk 0:01:30]}  cxd4 {[%clk 0:02:21]} 26. Nxe4 {[%clk 0:01:29]}  Rxe4 {[%clk 0:02:21]} 27. Qg3 {[%clk 0:01:23]}  Qe6 {[%clk 0:02:18]} 28. Qxg5+ {[%clk 0:01:22]}  Kh8 {[%clk 0:02:15]} 29. f3 {[%clk 0:01:10]}  f6 {[%clk 0:01:59]} 30. Qc5 {[%clk 0:01:06]}  Rh4 {[%clk 0:01:39]} 31. Qf8+ {[%clk 0:01:04]}  Qg8 {[%clk 0:01:39]} 32. Qxg8+ {[%clk 0:01:04]}  Kxg8 {[%clk 0:01:40]} 33. Rc4 {[%clk 0:01:04]}  Rh5 {[%clk 0:01:36]} 34. Rdxd4 {[%clk 0:01:02]}  Kf8 {[%clk 0:01:31]} 35. Rc7 {[%clk 0:01:01]}  Bd5 {[%clk 0:01:31]} 36. Rc5 {[%clk 0:00:59]}  Bf7 {[%clk 0:01:31]} 37. Rxh5 {[%clk 0:00:58]}  Bxh5 {[%clk 0:01:32]} 38. Ra4 {[%clk 0:00:57]}  Kg7 {[%clk 0:01:31]} 39. Rxa7+ {[%clk 0:00:57]}  Kh6 {[%clk 0:01:31]} 40. b4 {[%clk 0:00:56]}  f5 {[%clk 0:01:32]} 41. b5 {[%clk 0:00:55]}  f4 {[%clk 0:01:32]} 42. b6 {[%clk 0:00:55]}  Kg5 {[%clk 0:01:32]} 43. b7 {[%clk 0:00:55]}  Bxf3 {[%clk 0:01:31]} 44. gxf3 {[%clk 0:00:54]}  h5 {[%clk 0:01:32]} 45. b8=Q {[%clk 0:00:54]}  Kh4 {[%clk 0:01:32]} 46. Qg8 {[%clk 0:00:42]}  Kh3 {[%clk 0:01:33]} 47. Rh7 {[%clk 0:00:41]}  Kh4 {[%clk 0:01:32]} 48. Qg4# {[%clk 0:00:41]} 1-0


[Site "https://www.chess.com"]

[Event "Titled Tuesday Blitz March 29 Early 2022"]
[White "Sanal, Vahap"]
[Black "Oganian, Miran"]
[WhiteFideId "6300545"]
[BlackFideId "4122488"]
[WhiteElo "2603"]
[BlackElo "2357"]
[Result "1-0"]
[Round "07"]
[TimeControl "180+1"]
[Date "2022.03.29"]
[WhiteClock "0:00:14"]
[BlackClock "0:00:04"]

1. e4 {[%clk 0:03:00]}  e6 {[%clk 0:02:59]} 2. d4 {[%clk 0:03:00]}  d5 {[%clk 0:03:00]} 3. Nc3 {[%clk 0:03:01]}  Bb4 {[%clk 0:03:00]} 4. exd5 {[%clk 0:03:01]}  exd5 {[%clk 0:02:59]} 5. Bd3 {[%clk 0:03:01]}  Nc6 {[%clk 0:02:58]} 6. Nf3 {[%clk 0:02:59]}  Nge7 {[%clk 0:02:57]} 7. O-O {[%clk 0:02:59]}  Bg4 {[%clk 0:02:56]} 8. a3 {[%clk 0:02:58]}  Bd6 {[%clk 0:02:53]} 9. Nb5 {[%clk 0:02:58]}  h6 {[%clk 0:02:49]} 10. Re1 {[%clk 0:02:54]}  O-O {[%clk 0:02:49]} 11. h3 {[%clk 0:02:44]}  Bh5 {[%clk 0:02:46]} 12. Be2 {[%clk 0:02:34]}  a6 {[%clk 0:02:42]} 13. Nxd6 {[%clk 0:02:33]}  Qxd6 {[%clk 0:02:43]} 14. Ne5 {[%clk 0:02:28]}  Bxe2 {[%clk 0:02:41]} 15. Rxe2 {[%clk 0:02:29]}  Nxe5 {[%clk 0:02:27]} 16. dxe5 {[%clk 0:02:29]}  Qe6 {[%clk 0:02:26]} 17. Qd3 {[%clk 0:02:23]}  c5 {[%clk 0:02:25]} 18. Bd2 {[%clk 0:02:24]}  Rad8 {[%clk 0:02:22]} 19. Rf1 {[%clk 0:02:22]}  d4 {[%clk 0:02:09]} 20. f4 {[%clk 0:02:03]}  Qf5 {[%clk 0:02:08]} 21. g4 {[%clk 0:01:59]}  Qxd3 {[%clk 0:02:02]} 22. cxd3 {[%clk 0:02:00]}  Nd5 {[%clk 0:01:58]} 23. f5 {[%clk 0:02:00]}  Rfe8 {[%clk 0:01:52]} 24. Rfe1 {[%clk 0:01:41]}  b6 {[%clk 0:01:39]} 25. h4 {[%clk 0:01:37]}  b5 {[%clk 0:01:32]} 26. g5 {[%clk 0:01:35]}  h5 {[%clk 0:01:24]} 27. Rc1 {[%clk 0:01:27]}  Rc8 {[%clk 0:01:21]} 28. Re4 {[%clk 0:01:28]}  g6 {[%clk 0:01:17]} 29. fxg6 {[%clk 0:01:21]}  fxg6 {[%clk 0:01:18]} 30. b4 {[%clk 0:01:17]}  c4 {[%clk 0:01:02]} 31. dxc4 {[%clk 0:01:06]}  bxc4 {[%clk 0:00:52]} 32. Rxd4 {[%clk 0:01:05]}  Rxe5 {[%clk 0:00:51]} 33. Rcxc4 {[%clk 0:01:05]}  Rxc4 {[%clk 0:00:51]} 34. Rxc4 {[%clk 0:01:06]}  Re2 {[%clk 0:00:50]} 35. Rd4 {[%clk 0:01:04]}  Ne7 {[%clk 0:00:49]} 36. Kf1 {[%clk 0:01:03]}  Rh2 {[%clk 0:00:48]} 37. Be1 {[%clk 0:00:49]}  Nf5 {[%clk 0:00:46]} 38. Rd8+ {[%clk 0:00:47]}  Kf7 {[%clk 0:00:45]} 39. Rd7+ {[%clk 0:00:48]}  Ke6 {[%clk 0:00:42]} 40. Ra7 {[%clk 0:00:48]}  Kd5 {[%clk 0:00:42]} 41. Rxa6 {[%clk 0:00:43]}  Ke4 {[%clk 0:00:42]} 42. Rc6 {[%clk 0:00:29]}  Kf3 {[%clk 0:00:40]} 43. Rc3+ {[%clk 0:00:25]}  Ne3+ {[%clk 0:00:37]} 44. Kg1 {[%clk 0:00:26]}  Rg2+ {[%clk 0:00:38]} 45. Kh1 {[%clk 0:00:26]}  Re2 {[%clk 0:00:38]} 46. Rc1 {[%clk 0:00:26]}  Ng2 {[%clk 0:00:23]} 47. Rc3+ {[%clk 0:00:20]}  Ne3 {[%clk 0:00:22]} 48. Rc1 {[%clk 0:00:20]}  Ng2 {[%clk 0:00:15]} 49. Bc3 {[%clk 0:00:21]}  Nxh4 {[%clk 0:00:15]} 50. b5 {[%clk 0:00:22]}  Nf5 {[%clk 0:00:15]} 51. Be1 {[%clk 0:00:20]}  Rb2 {[%clk 0:00:11]} 52. a4 {[%clk 0:00:21]}  h4 {[%clk 0:00:11]} 53. Rc3+ {[%clk 0:00:21]}  Ne3 {[%clk 0:00:09]} 54. Bxh4 {[%clk 0:00:19]}  Rb1+ {[%clk 0:00:09]} 55. Kh2 {[%clk 0:00:19]}  Rb2+ {[%clk 0:00:09]} 56. Kh1 {[%clk 0:00:20]}  Rb1+ {[%clk 0:00:09]} 57. Kh2 {[%clk 0:00:20]}  Rb2+ {[%clk 0:00:09]} 58. Kh3 {[%clk 0:00:21]}  Rb1 {[%clk 0:00:09]} 59. Bg3 {[%clk 0:00:22]}  Ke4 {[%clk 0:00:04]} 60. a5 {[%clk 0:00:17]}  Rxb5 {[%clk 0:00:04]} 61. Ra3 {[%clk 0:00:17]}  Nc4 {[%clk 0:00:04]} 62. Ra4 {[%clk 0:00:18]}  Kd5 {[%clk 0:00:03]} 63. a6 {[%clk 0:00:19]}  Nb6 {[%clk 0:00:03]} 64. a7 {[%clk 0:00:17]}  Na8 {[%clk 0:00:03]} 65. Bb8 {[%clk 0:00:13]}  Kc6 {[%clk 0:00:04]} 66. Kg4 {[%clk 0:00:11]}  Kb7 {[%clk 0:00:04]} 67. Rf4 {[%clk 0:00:11]}  Rb6 {[%clk 0:00:03]} 68. Rf7+ {[%clk 0:00:12]}  Kc8 {[%clk 0:00:02]} 69. Rg7 {[%clk 0:00:12]}  Rb4+ {[%clk 0:00:02]} 70. Kf3 {[%clk 0:00:12]}  Rb6 {[%clk 0:00:02]} 71. Ke4 {[%clk 0:00:12]}  Rb4+ {[%clk 0:00:02]} 72. Kd3 {[%clk 0:00:13]}  Rb6 {[%clk 0:00:02]} 73. Be5 {[%clk 0:00:13]}  Ra6 {[%clk 0:00:02]} 74. Ke4 {[%clk 0:00:12]}  Rb6 {[%clk 0:00:02]} 75. Bd4 {[%clk 0:00:12]}  Ra6 {[%clk 0:00:03]} 76. Rg8+ {[%clk 0:00:13]}  Kb7 {[%clk 0:00:03]} 77. Rb8+ {[%clk 0:00:14]}  Kc7 {[%clk 0:00:04]} 78. Rxa8 {[%clk 0:00:14]} 1-0


[Site "https://www.chess.com"]

[Event "Titled Tuesday Blitz March 29 Early 2022"]
[White "Sanchez, Robert"]
[Black "Gu, Xiaobing"]
[WhiteFideId "2034360"]
[BlackFideId "8602611"]
[WhiteElo "2267"]
[BlackElo "2174"]
[Result "1-0"]
[Round "07"]
[TimeControl "180+1"]
[Date "2022.03.30"]
[WhiteClock "0:00:17"]
[BlackClock "0:00:07"]

1. e4 {[%clk 0:03:00]}  c5 {[%clk 0:02:58]} 2. Nf3 {[%clk 0:03:01]}  d6 {[%clk 0:02:50]} 3. d4 {[%clk 0:03:01]}  cxd4 {[%clk 0:02:50]} 4. Nxd4 {[%clk 0:03:01]}  Nf6 {[%clk 0:02:51]} 5. Nc3 {[%clk 0:03:02]}  a6 {[%clk 0:02:51]} 6. Be3 {[%clk 0:03:02]}  e5 {[%clk 0:02:51]} 7. Nb3 {[%clk 0:03:02]}  Be7 {[%clk 0:02:51]} 8. f3 {[%clk 0:03:02]}  Be6 {[%clk 0:02:51]} 9. Qd2 {[%clk 0:03:03]}  h5 {[%clk 0:02:52]} 10. O-O-O {[%clk 0:03:02]}  Nbd7 {[%clk 0:02:52]} 11. Nd5 {[%clk 0:03:00]}  Bxd5 {[%clk 0:02:51]} 12. exd5 {[%clk 0:03:01]}  Rc8 {[%clk 0:02:50]} 13. Kb1 {[%clk 0:03:00]}  Nb6 {[%clk 0:02:47]} 14. Bxb6 {[%clk 0:02:59]}  Qxb6 {[%clk 0:02:46]} 15. c4 {[%clk 0:03:00]}  O-O {[%clk 0:02:17]} 16. Bd3 {[%clk 0:02:56]}  Nd7 {[%clk 0:02:00]} 17. Bf5 {[%clk 0:02:44]}  Rc7 {[%clk 0:01:59]} 18. Bxd7 {[%clk 0:02:36]}  Rxd7 {[%clk 0:01:58]} 19. g4 {[%clk 0:01:58]}  hxg4 {[%clk 0:01:46]} 20. fxg4 {[%clk 0:01:58]}  Rc7 {[%clk 0:01:38]} 21. c5 {[%clk 0:01:43]}  Qb5 {[%clk 0:01:09]} 22. Qd3 {[%clk 0:01:31]}  Bh4 {[%clk 0:00:45]} 23. Qxb5 {[%clk 0:01:18]}  axb5 {[%clk 0:00:44]} 24. Rc1 {[%clk 0:01:13]}  dxc5 {[%clk 0:00:34]} 25. Rxc5 {[%clk 0:01:09]}  Rxc5 {[%clk 0:00:21]} 26. Nxc5 {[%clk 0:01:10]}  Rd8 {[%clk 0:00:22]} 27. Rd1 {[%clk 0:01:09]}  b6 {[%clk 0:00:22]} 28. Ne4 {[%clk 0:01:03]}  g6 {[%clk 0:00:22]} 29. g5 {[%clk 0:00:59]}  f5 {[%clk 0:00:19]} 30. gxf6 {[%clk 0:00:59]}  Kf7 {[%clk 0:00:20]} 31. Kc2 {[%clk 0:00:58]}  Rc8+ {[%clk 0:00:18]} 32. Kb3 {[%clk 0:00:58]}  Rc7 {[%clk 0:00:13]} 33. d6 {[%clk 0:00:51]}  Rd7 {[%clk 0:00:13]} 34. Kb4 {[%clk 0:00:48]}  Ke6 {[%clk 0:00:14]} 35. Kxb5 {[%clk 0:00:45]}  Kf5 {[%clk 0:00:13]} 36. Kc6 {[%clk 0:00:45]}  Rd8 {[%clk 0:00:10]} 37. Ng3+ {[%clk 0:00:26]}  Kxf6 {[%clk 0:00:09]} 38. Kc7 {[%clk 0:00:25]}  Ke6 {[%clk 0:00:09]} 39. Ne4 {[%clk 0:00:22]}  Ra8 {[%clk 0:00:07]} 40. a3 {[%clk 0:00:21]}  b5 {[%clk 0:00:07]} 41. d7 {[%clk 0:00:19]}  Ra7+ {[%clk 0:00:07]} 42. Kb8 {[%clk 0:00:17]}  Rxd7 {[%clk 0:00:07]} 43. Nc5+ {[%clk 0:00:17]} 1-0


[Site "https://www.chess.com"]

[Event "Titled Tuesday Blitz March 29 Early 2022"]
[White "Sarkar, Justin"]
[Black "Fiol, Fabrice"]
[WhiteFideId "2010011"]
[BlackFideId "611670"]
[WhiteElo "2038"]
[BlackElo "2429"]
[Result "0-1"]
[Round "07"]
[TimeControl "180+1"]
[Date "2022.03.30"]
[WhiteClock "0:00:01"]
[BlackClock "0:00:20"]

1. d4 {[%clk 0:03:00]}  Nf6 {[%clk 0:02:59]} 2. c4 {[%clk 0:02:58]}  e6 {[%clk 0:02:57]} 3. Nc3 {[%clk 0:02:55]}  Bb4 {[%clk 0:02:54]} 4. e3 {[%clk 0:02:50]}  b6 {[%clk 0:02:54]} 5. Be2 {[%clk 0:02:42]}  Bb7 {[%clk 0:02:53]} 6. Nf3 {[%clk 0:02:40]}  O-O {[%clk 0:02:51]} 7. O-O {[%clk 0:02:39]}  Bxc3 {[%clk 0:02:51]} 8. bxc3 {[%clk 0:02:38]}  Ne4 {[%clk 0:02:51]} 9. Qc2 {[%clk 0:02:36]}  f5 {[%clk 0:02:51]} 10. Ne1 {[%clk 0:02:30]}  d6 {[%clk 0:02:49]} 11. f3 {[%clk 0:02:18]}  Ng5 {[%clk 0:02:44]} 12. Bd3 {[%clk 0:02:10]}  Nd7 {[%clk 0:02:41]} 13. a4 {[%clk 0:02:05]}  a5 {[%clk 0:02:39]} 14. Bd2 {[%clk 0:02:02]}  g6 {[%clk 0:02:37]} 15. e4 {[%clk 0:01:51]}  f4 {[%clk 0:02:35]} 16. h4 {[%clk 0:01:37]}  Nf7 {[%clk 0:02:34]} 17. Bxf4 {[%clk 0:01:37]}  Qxh4 {[%clk 0:02:34]} 18. Qd2 {[%clk 0:01:27]}  e5 {[%clk 0:02:29]} 19. Be3 {[%clk 0:01:20]}  Rae8 {[%clk 0:02:20]} 20. Qf2 {[%clk 0:01:16]}  Qe7 {[%clk 0:02:05]} 21. Nc2 {[%clk 0:01:10]}  Nf6 {[%clk 0:02:00]} 22. Qh4 {[%clk 0:01:01]}  Kg7 {[%clk 0:01:32]} 23. Na3 {[%clk 0:00:54]}  h6 {[%clk 0:01:17]} 24. Nb5 {[%clk 0:00:51]}  g5 {[%clk 0:01:16]} 25. Qh2 {[%clk 0:00:49]}  Nh8 {[%clk 0:01:05]} 26. c5 {[%clk 0:00:43]}  bxc5 {[%clk 0:00:59]} 27. dxc5 {[%clk 0:00:43]}  Ng6 {[%clk 0:00:59]} 28. Rab1 {[%clk 0:00:32]}  Nf4 {[%clk 0:00:47]} 29. Bxf4 {[%clk 0:00:25]}  exf4 {[%clk 0:00:48]} 30. Nd4 {[%clk 0:00:19]}  Bc8 {[%clk 0:00:47]} 31. cxd6 {[%clk 0:00:13]}  Qxd6 {[%clk 0:00:47]} 32. Rfd1 {[%clk 0:00:05]}  Qc5 {[%clk 0:00:43]} 33. Kh1 {[%clk 0:00:05]}  c6 {[%clk 0:00:37]} 34. Rdc1 {[%clk 0:00:01]}  Rd8 {[%clk 0:00:35]} 35. Be2 {[%clk 0:00:01]}  Rfe8 {[%clk 0:00:20]} 0-1


[Site "https://www.chess.com"]

[Event "Titled Tuesday Blitz March 29 Early 2022"]
[White "Shandrygin, Nikita"]
[Black "Ardila, Oscar Humberto"]
[WhiteFideId "24198668"]
[BlackFideId "4404742"]
[WhiteElo "2324"]
[BlackElo "1966"]
[Result "1-0"]
[Round "07"]
[TimeControl "180+1"]
[Date "2022.03.30"]
[WhiteClock "0:00:12"]
[BlackClock "0:00:11"]

1. Nf3 {[%clk 0:02:52]}  Nf6 {[%clk 0:02:59]} 2. g3 {[%clk 0:02:53]}  g6 {[%clk 0:02:59]} 3. Bg2 {[%clk 0:02:52]}  Bg7 {[%clk 0:02:59]} 4. O-O {[%clk 0:02:53]}  O-O {[%clk 0:02:59]} 5. d4 {[%clk 0:02:54]}  d6 {[%clk 0:02:59]} 6. b3 {[%clk 0:02:54]}  Nbd7 {[%clk 0:02:59]} 7. Bb2 {[%clk 0:02:55]}  c6 {[%clk 0:02:59]} 8. Nbd2 {[%clk 0:02:56]}  Qc7 {[%clk 0:03:00]} 9. a4 {[%clk 0:02:50]}  a5 {[%clk 0:02:59]} 10. Nc4 {[%clk 0:02:43]}  d5 {[%clk 0:02:47]} 11. Nce5 {[%clk 0:02:37]}  Nxe5 {[%clk 0:02:47]} 12. Nxe5 {[%clk 0:02:31]}  Bf5 {[%clk 0:02:40]} 13. e3 {[%clk 0:02:08]}  Ne4 {[%clk 0:02:33]} 14. Nd3 {[%clk 0:02:07]}  b6 {[%clk 0:02:17]} 15. c4 {[%clk 0:01:58]}  Rac8 {[%clk 0:02:07]} 16. Rc1 {[%clk 0:01:55]}  Qb8 {[%clk 0:01:51]} 17. Ba3 {[%clk 0:01:48]}  Rfe8 {[%clk 0:01:46]} 18. g4 {[%clk 0:01:15]}  Bd7 {[%clk 0:01:40]} 19. f3 {[%clk 0:01:06]}  Nf6 {[%clk 0:01:29]} 20. h3 {[%clk 0:01:02]}  Bh6 {[%clk 0:01:23]} 21. Qe2 {[%clk 0:00:58]}  Qg3 {[%clk 0:00:54]} 22. Qf2 {[%clk 0:00:47]}  Qxf2+ {[%clk 0:00:51]} 23. Kxf2 {[%clk 0:00:48]}  c5 {[%clk 0:00:34]} 24. f4 {[%clk 0:00:40]}  Ne4+ {[%clk 0:00:21]} 25. Bxe4 {[%clk 0:00:34]}  dxe4 {[%clk 0:00:22]} 26. Ne5 {[%clk 0:00:35]}  Be6 {[%clk 0:00:19]} 27. d5 {[%clk 0:00:35]}  f6 {[%clk 0:00:18]} 28. Nc6 {[%clk 0:00:17]}  Bd7 {[%clk 0:00:18]} 29. Na7 {[%clk 0:00:17]}  Ra8 {[%clk 0:00:18]} 30. Nb5 {[%clk 0:00:16]}  Bxb5 {[%clk 0:00:18]} 31. axb5 {[%clk 0:00:16]}  e6 {[%clk 0:00:18]} 32. Rfd1 {[%clk 0:00:16]}  Kf7 {[%clk 0:00:16]} 33. dxe6+ {[%clk 0:00:15]}  Rxe6 {[%clk 0:00:17]} 34. Rd7+ {[%clk 0:00:14]}  Re7 {[%clk 0:00:17]} 35. Rcd1 {[%clk 0:00:15]}  Re8 {[%clk 0:00:17]} 36. R7d6 {[%clk 0:00:15]}  Re6 {[%clk 0:00:17]} 37. Bb2 {[%clk 0:00:11]}  Bf8 {[%clk 0:00:16]} 38. Rd7+ {[%clk 0:00:11]}  R8e7 {[%clk 0:00:16]} 39. f5 {[%clk 0:00:11]}  gxf5 {[%clk 0:00:15]} 40. gxf5 {[%clk 0:00:11]}  Re5 {[%clk 0:00:11]} 41. Bxe5 {[%clk 0:00:10]}  fxe5 {[%clk 0:00:12]} 42. Rxe7+ {[%clk 0:00:10]}  Bxe7 {[%clk 0:00:12]} 43. Rd7 {[%clk 0:00:10]}  Kf6 {[%clk 0:00:12]} 44. Rb7 {[%clk 0:00:10]}  Bf8 {[%clk 0:00:11]} 45. Rxb6+ {[%clk 0:00:10]}  Kxf5 {[%clk 0:00:12]} 46. Ra6 {[%clk 0:00:11]}  Be7 {[%clk 0:00:10]} 47. b6 {[%clk 0:00:11]}  Bh4+ {[%clk 0:00:10]} 48. Ke2 {[%clk 0:00:11]}  Bd8 {[%clk 0:00:10]} 49. b7 {[%clk 0:00:11]}  Bc7 {[%clk 0:00:10]} 50. Rc6 {[%clk 0:00:11]}  Bb8 {[%clk 0:00:11]} 51. Rc8 {[%clk 0:00:12]}  Ba7 {[%clk 0:00:11]} 52. Ra8 {[%clk 0:00:12]} 1-0


[Site "https://www.chess.com"]

[Event "Titled Tuesday Blitz March 29 Early 2022"]
[White "Shvedova, Alexandra"]
[Black "Bernat, David"]
[WhiteFideId "54154782"]
[BlackFideId "2099225"]
[WhiteElo "1912"]
[BlackElo "2311"]
[Result "1-0"]
[Round "07"]
[TimeControl "180+1"]
[Date "2022.03.30"]
[WhiteClock "0:02:49"]
[BlackClock "0:02:52"]

1. e4 {[%clk 0:03:00]}  c5 {[%clk 0:02:58]} 2. Ne2 {[%clk 0:03:00]}  g6 {[%clk 0:02:58]} 3. d4 {[%clk 0:02:59]}  cxd4 {[%clk 0:02:59]} 4. Nxd4 {[%clk 0:03:00]}  Nc6 {[%clk 0:03:00]} 5. c4 {[%clk 0:03:00]}  Nf6 {[%clk 0:02:59]} 6. Nc3 {[%clk 0:03:00]}  d6 {[%clk 0:02:59]} 7. f3 {[%clk 0:02:58]}  Nxd4 {[%clk 0:02:58]} 8. Qxd4 {[%clk 0:02:58]}  Bg7 {[%clk 0:02:59]} 9. Be3 {[%clk 0:02:59]}  O-O {[%clk 0:02:59]} 10. Qd2 {[%clk 0:02:59]}  Be6 {[%clk 0:02:59]} 11. Rc1 {[%clk 0:02:55]}  Qa5 {[%clk 0:02:59]} 12. Nd5 {[%clk 0:02:55]}  Qxd2+ {[%clk 0:02:57]} 13. Kxd2 {[%clk 0:02:55]}  Nxd5 {[%clk 0:02:54]} 14. cxd5 {[%clk 0:02:55]}  Bd7 {[%clk 0:02:54]} 15. Rc7 {[%clk 0:02:50]}  Rfd8 {[%clk 0:02:52]} 16. Rxb7 {[%clk 0:02:50]}  Bxb2 {[%clk 0:02:52]} 17. Rxb2 {[%clk 0:02:49]} 1-0


[Site "https://www.chess.com"]